fUSD/lending_fUSD_20250322
["ID","MTS","AMOUNT","RATE_DAILY","PERIOD"]
[356566853,1742680281458,-550.44,0.000496,45]
[356566854,1742680281467,-550.44,0.000496,45]
[356566855,1742680281476,-550.44,0.000496,45]
[356566856,1742680281486,-550.44,0.000496,45]
[356566857,1742680281495,-550.44,0.000496,45]
[356566858,1742680281505,-550.44,0.000496,45]
[356566859,1742680281514,-550.44,0.000496,45]
[356566860,1742680281523,-550.44,0.000496,45]
[356566861,1742680281533,-550.44,0.000496,45]
[356566862,1742680281542,-550.44,0.000496,45]
[356566863,1742680281551,-550.44,0.000496,45]
[356566864,1742680281560,-550.44,0.000496,45]
[356566865,1742680281569,-550.44,0.000496,45]
[356566866,1742680281580,-550.44,0.000496,45]
[356566867,1742680281589,-550.44,0.000496,45]
[356566868,1742680281598,-550.44,0.000496,45]
[356566869,1742680281608,-550.44,0.000496,45]
[356566870,1742680281617,-550.44,0.000496,45]
[356566871,1742680281627,-550.44,0.000496,45]
[356566872,1742680281636,-550.44,0.000496,45]
[356566873,1742680281645,-550.44,0.000496,45]
[356566874,1742680281655,-550.44,0.000496,45]
[356566875,1742680281664,-550.44,0.000496,45]
[356566876,1742680281673,-150.0,0.00049609,30]
[356566877,1742680281682,-150.0,0.00049617,30]
[356566878,1742680281691,-500.0,0.0004963,120]
[356566879,1742680281699,-800.0,0.0004963,120]
[356566880,1742680281708,-1647.25544415,0.0004963,120]
[356566881,1742680281718,-150.0,0.00049636,30]
[356566882,1742680281727,-150.0,0.0004965,30]
[356566883,1742680281736,-150.0,0.00049695,30]
[356566884,1742680281745,-150.0,0.00049703,30]
[356566885,1742680281754,-150.0,0.00049755,30]
[356566886,1742680281763,-150.0,0.0004979,30]
[356566887,1742680281772,-150.0,0.000498,30]
[356566888,1742680281781,-204.0,0.0004981,30]
[356566889,1742680281790,-201.0,0.0004981,30]
[356566890,1742680281799,-207.0,0.0004981,30]
[356566891,1742680281808,-150.0,0.00049814,30]
[356566892,1742680281818,-276.63094465,0.00049863,120]
[356566893,1742680281827,-1112.04,0.00049863,120]
[356566894,1742680281836,-541.66,0.00049863,120]
[356566895,1742680281851,-523.07,0.00049863,120]
[356566896,1742680281860,-666.0,0.00049863,120]
[356566897,1742680281869,-666.0,0.00049863,120]
[356566898,1742680281878,-666.0,0.00049863,120]
[356566899,1742680281888,-666.0,0.00049863,120]
[356566900,1742680281897,-666.0,0.00049863,120]
[356566901,1742680281992,-666.0,0.00049863,120]
[356566902,1742680282002,-666.0,0.00049863,120]
[356566903,1742680282011,-666.0,0.00049863,120]
[356566904,1742680282020,-666.0,0.00049863,120]
[356566905,1742680282029,-500.0,0.00049863,120]
[356566906,1742680282039,-1995.08,0.00049863,120]
[356566907,1742680282048,-585.0,0.00049863,120]
[356566908,1742680282057,-506.53,0.00049863,120]
[356566909,1742680282066,-715.73,0.00049863,120]
[356566910,1742680282075,-500.0,0.00049863,120]
[356566911,1742680282085,-1700.91,0.00049863,120]
[356566912,1742680282094,-749.15,0.00049863,120]
[356566913,1742680282104,-500.31891553,0.00049863,120]
[356566914,1742680282113,-14463.29,0.00049863,120]
[356566915,1742680282122,-900.87,0.00049863,2]
[356566916,1742680282132,-1076.21,0.00049863,120]
[356566917,1742680282141,-722.27,0.00049863,120]
[356566918,1742680282150,-945.13,0.00049863,120]
[356566919,1742680282159,-834.39,0.00049863,120]
[356566920,1742680282169,-696.25,0.00049863,120]
[356566921,1742680282178,-686.72,0.00049863,120]
[356566922,1742680282188,-909.88,0.00049863,120]
[356566923,1742680282197,-503.41,0.00049863,120]
[356566924,1742680282206,-1424.5,0.00049863,120]
[356566925,1742680282216,-670.46,0.00049863,120]
[356566926,1742680282226,-602.75,0.00049863,120]
[356566927,1742680282235,-528.26,0.00049863,120]
[356566928,1742680282244,-500.0,0.00049863,120]
[356566929,1742680282254,-939.41,0.00049863,120]
[356566930,1742680282263,-150.0,0.00049873,30]
[356566931,1742680282272,-150.0,0.00049876,30]
[356566932,1742680282281,-3061.38,0.0004989,35]
[356566933,1742680282290,-801.67377049,0.000499,120]
[356566934,1742680282302,-4988.98199998,0.000499,4]
[356566935,1742680282311,-1526.00422689,0.000499,60]
[356566936,1742680282321,-282.11168189,0.000499,38]
[356566937,1742680282330,-150.0,0.00049933,30]
[356566938,1742680282339,-150.0,0.0004995,30]
[356566939,1742680282348,-150.0,0.00049963,30]
[356566940,1742680282357,-150.33353091,0.00049966,14]
[356566941,1742680282366,-400.0,0.0004997,3]
[356566942,1742680282375,-300.0,0.0004997,3]
[356566943,1742680282385,-602.83,0.00049977,2]
[356566944,1742680282394,-150.0,0.00049992,30]
[356566945,1742680282403,-1379.30334382,0.00049998,120]
[356566946,1742680282412,-300.59263738,0.00049999,120]
[356566947,1742680282421,-355.66257745,0.00049999,120]
[356566948,1742680282431,-163.50572879,0.00049999,120]
[356566949,1742680282440,-500.0,0.00049999,120]
[356566950,1742680282449,-500.0,0.00049999,120]
[356566951,1742680282458,-358.23795584,0.00049999,120]
[356566952,1742680282467,-500.0,0.00049999,120]
[356566953,1742680282477,-500.0,0.00049999,120]
[356566954,1742680282486,-500.0,0.00049999,120]
[356566955,1742680282495,-500.0,0.00049999,120]
[356566956,1742680282505,-500.0,0.00049999,120]
[356566957,1742680282514,-500.0,0.00049999,120]
[356566958,1742680282523,-500.0,0.00049999,120]
[356566959,1742680282533,-500.0,0.00049999,120]
[356566960,1742680282542,-500.0,0.00049999,120]
[356566961,1742680282552,-500.0,0.00049999,120]
[356566962,1742680282561,-500.0,0.00049999,120]
[356566963,1742680282570,-500.0,0.00049999,120]
[356566964,1742680282580,-500.0,0.00049999,120]
[356566965,1742680282590,-500.0,0.00049999,120]
[356566966,1742680282600,-500.0,0.00049999,120]
[356566967,1742680282609,-500.0,0.00049999,120]
[356566968,1742680282619,-201.16753916,0.00049999,120]
[356566969,1742680282627,-500.0,0.00049999,120]
[356566970,1742680282637,-500.0,0.00049999,120]
[356566971,1742680282647,-500.0,0.00049999,120]
[356566972,1742680282656,-350.0,0.00049999,120]
[356566973,1742680282665,-350.0,0.00049999,120]
[356566974,1742680282674,-500.0,0.00049999,120]
[356566975,1742680282683,-500.0,0.00049999,120]
[356566976,1742680282692,-500.0,0.00049999,120]
[356566977,1742680282701,-500.0,0.00049999,120]
[356566978,1742680282710,-500.0,0.00049999,120]
[356566979,1742680282719,-500.0,0.00049999,120]
[356566980,1742680282728,-500.0,0.00049999,120]
[356566981,1742680282737,-500.0,0.00049999,120]
[356566982,1742680282746,-500.0,0.00049999,120]
[356566983,1742680282756,-218.26666946,0.00049999,120]
[356566984,1742680282765,-500.0,0.00049999,120]
[356566985,1742680282773,-401.56774303,0.00049999,120]
[356566986,1742680282783,-490.96797438,0.00049999,120]
[356566987,1742680282792,-410.52252842,0.00049999,120]
[356566988,1742680282800,-500.0,0.00049999,120]
[356566989,1742680282809,-438.59020075,0.00049999,120]
[356566990,1742680282819,-483.8386214,0.00049999,120]
[356566991,1742680282827,-500.0,0.00049999,120]
[356566992,1742680282837,-500.0,0.00049999,120]
[356566993,1742680282846,-500.0,0.00049999,120]
[356566994,1742680282855,-500.0,0.00049999,120]
[356566995,1742680282864,-500.0,0.00049999,120]
[356566996,1742680282874,-500.0,0.00049999,120]
[356566997,1742680282882,-500.0,0.00049999,120]
[356566998,1742680282891,-200.0,0.00049999,120]
[356566999,1742680282900,-500.0,0.00049999,120]
[356567000,1742680282909,-500.0,0.00049999,120]
[356567001,1742680282918,-500.0,0.00049999,120]
[356567002,1742680282927,-500.0,0.00049999,120]
[356567003,1742680282936,-500.0,0.00049999,120]
[356567004,1742680282946,-500.0,0.00049999,120]
[356567005,1742680282955,-500.0,0.00049999,120]
[356567006,1742680282964,-166.79639324,0.00049999,120]
[356567007,1742680282973,-500.0,0.00049999,120]
[356567008,1742680282981,-500.0,0.00049999,120]
[356567009,1742680282990,-500.0,0.00049999,120]
[356567010,1742680282999,-500.0,0.00049999,120]
[356567011,1742680283009,-500.0,0.00049999,120]
[356567012,1742680283018,-500.0,0.00049999,120]
[356567013,1742680283027,-500.0,0.00049999,120]
[356567014,1742680283036,-500.0,0.00049999,120]
[356567015,1742680283045,-500.0,0.00049999,120]
[356567016,1742680283054,-250.0,0.00049999,120]
[356567017,1742680283064,-500.0,0.00049999,120]
[356567018,1742680283073,-500.0,0.00049999,120]
[356567019,1742680283082,-500.0,0.00049999,120]
[356567020,1742680283091,-500.0,0.00049999,120]
[356567021,1742680283100,-175.95556207,0.00049999,120]
[356567022,1742680283109,-50000.0,0.0005,50]
[356567023,1742680283118,-1000.0,0.0005,120]
[356567024,1742680283128,-953475.45755319,0.0005,120]
[356567025,1742680283137,-1000000.0,0.0005,120]
[356567026,1742680283146,-10000.0,0.0005,120]
[356567027,1742680283155,-10000.0,0.0005,120]
[356567028,1742680283164,-10000.0,0.0005,120]
[356567030,1742680283174,-10000.0,0.0005,120]
[356567031,1742680283183,-10000.0,0.0005,120]
[356567032,1742680283192,-2129.27538257,0.0005,45]
[356567033,1742680283200,-246.028607,0.0005,45]
[356567034,1742680283209,-2671.8223056,0.0005,120]
[356567035,1742680283218,-12258.2055598,0.0005,120]
[356567036,1742680283227,-250.0,0.0005,10]
[356567037,1742680283236,-103797.46,0.0005,120]
[356567038,1742680283245,-500.0,0.0005,120]
[356567039,1742680283254,-725.0,0.0005,120]
[356567040,1742680283263,-1000.0,0.0005,2]
[356567041,1742680283272,-731.74,0.0005,2]
[356567042,1742680283281,-100000.0,0.0005,30]
[356567043,1742680283291,-969321.25,0.0005,120]
[356567044,1742680283303,-500.0,0.0005,120]
[356567045,1742680283312,-250.0,0.0005,120]
[356567046,1742680283321,-250.0,0.0005,120]
[356567047,1742680283331,-250.0,0.0005,120]
[356567048,1742680283340,-250.0,0.0005,120]
[356567049,1742680283349,-250.0,0.0005,120]
[356567050,1742680283358,-250.0,0.0005,120]
[356567051,1742680283369,-328.9,0.0005,120]
[356567052,1742680283378,-200.0,0.0005,120]
[356567053,1742680283387,-198.28,0.00050036,2]
[356567054,1742680283397,-150.0,0.00050049,30]
[356567055,1742680283489,-150.0,0.00050051,30]
[356567056,1742680283499,-150.0,0.00050073,30]
[356567057,1742680283508,-150.0,0.000501,30]
[356567058,1742680283517,-150.0,0.0005011,30]
[356567059,1742680283526,-150.0,0.00050136,30]
[356567060,1742680283535,-1112.257936,0.00050136,120]
[356567061,1742680283545,-541.69700866,0.00050136,120]
[356567062,1742680283554,-523.0723654,0.00050136,120]
[356567063,1742680283563,-419.7798039,0.00050136,120]
[356567064,1742680283573,-1995.18869984,0.00050136,120]
[356567065,1742680283582,-585.21591027,0.00050136,120]
[356567066,1742680283592,-506.74084614,0.00050136,120]
[356567067,1742680283601,-715.80827649,0.00050136,120]
[356567068,1742680283610,-279.61681069,0.00050136,120]
[356567069,1742680283619,-1701.05883598,0.00050136,120]
[356567070,1742680283629,-749.35379412,0.00050136,120]
[356567071,1742680283638,-14463.43885057,0.00050136,120]
[356567072,1742680283647,-900.87779485,0.00050136,2]
[356567073,1742680283656,-1076.3886228,0.00050136,120]
[356567074,1742680283665,-722.32375978,0.00050136,120]
[356567075,1742680283674,-945.16570852,0.00050136,120]
[356567076,1742680283683,-834.57786744,0.00050136,120]
[356567077,1742680283692,-696.40307911,0.00050136,120]
[356567078,1742680283701,-686.88792843,0.00050136,120]
[356567079,1742680283710,-909.96858035,0.00050136,120]
[356567080,1742680283719,-503.46783769,0.00050136,120]
[356567081,1742680283728,-1424.57484887,0.00050136,120]
[356567082,1742680283737,-670.55430565,0.00050136,120]
[356567083,1742680283746,-602.86431984,0.00050136,120]
[356567084,1742680283755,-528.42171478,0.00050136,120]
[356567085,1742680283764,-405.89538504,0.00050136,120]
[356567086,1742680283773,-939.54099835,0.00050136,120]
[356567087,1742680283782,-150.0,0.0005017,30]
[356567088,1742680283791,-230.07416363,0.00050178,120]
[356567089,1742680283800,-800.0,0.00050178,120]
[356567090,1742680283809,-150.0,0.00050222,30]
[356567091,1742680283817,-150.0,0.00050229,30]
[356567092,1742680283826,-150.0,0.0005025,30]
[356567093,1742680283835,-150.0,0.00050288,30]
[356567094,1742680283844,-150.0,0.00050308,30]
[356567095,1742680283854,-150.0,0.00050348,30]
[356567096,1742680283863,-150.0,0.00050395,30]
[356567097,1742680283872,-150.0,0.000504,30]
[356567098,1742680283881,-150.0,0.00050407,30]
[356567099,1742680283890,-150.0,0.00050466,30]
[356567100,1742680283899,-150.0,0.00050481,30]
[356567101,1742680283909,-3000.0,0.00050499,120]
[356567102,1742680283918,-1539.65732611,0.000505,120]
[356567103,1742680283927,-200.0,0.000505,120]
[356567104,1742680283937,-150.0,0.00050526,30]
[356567105,1742680283946,-150.0,0.00050536,30]
[356567106,1742680283956,-150.0,0.0005055,30]
[356567107,1742680283965,-150.0,0.00050568,30]
[356567108,1742680283974,-150.0,0.00050585,30]
[356567109,1742680283984,-150.0,0.00050644,30]
[356567110,1742680283993,-150.0,0.00050654,30]
[356567111,1742680284002,-191.15,0.00050684,120]
[356567112,1742680284012,-550.44,0.000507,48]
[356567113,1742680284021,-550.44,0.000507,48]
[356567114,1742680284030,-550.44,0.000507,48]
[356567115,1742680284040,-550.44,0.000507,48]
[356567116,1742680284049,-550.44,0.000507,48]
[356567117,1742680284058,-550.44,0.000507,48]
[356567118,1742680284067,-550.44,0.000507,48]
[356567119,1742680284077,-550.44,0.000507,48]
[356567120,1742680284086,-550.44,0.000507,48]
[356567121,1742680284095,-550.44,0.000507,48]
[356567122,1742680284105,-550.44,0.000507,48]
[356567123,1742680284114,-550.44,0.000507,48]
[356567124,1742680284123,-550.44,0.000507,48]
[356567125,1742680284133,-550.44,0.000507,48]
[356567126,1742680284142,-550.44,0.000507,48]
[356567127,1742680284152,-550.44,0.000507,48]
[356567128,1742680284161,-150.0,0.000507,30]
[356567129,1742680284170,-150.0,0.00050703,30]
[356567130,1742680284179,-379.11915568,0.00050726,120]
[356567131,1742680284188,-150.0,0.00050741,30]
[356567132,1742680284197,-153.0,0.00050745,120]
[356567133,1742680284206,-150.0,0.00050763,30]
[356567134,1742680284215,-150.0,0.00050792,120]
[356567135,1742680284224,-150.0,0.00050822,30]
[356567136,1742680284234,-150.0,0.00050827,30]
[356567137,1742680284244,-150.0,0.0005085,30]
[356567138,1742680284253,-150.0,0.00050881,30]
[356567139,1742680284262,-4873.18602786,0.000509,2]
[356567140,1742680284271,-268.38418202,0.000509,2]
[356567141,1742680284281,-150.0,0.00050914,30]
[356567142,1742680284291,-150.0,0.00050941,30]
[356567143,1742680284303,-400.0,0.0005097,7]
[356567144,1742680284312,-300.0,0.0005097,7]
[356567145,1742680284321,-50000.0,0.00051,51]
[356567146,1742680284331,-949512.89505239,0.00051,120]
[356567147,1742680284340,-250.0,0.00051,10]
[356567148,1742680284350,-250.0,0.00051,10]
[356567149,1742680284359,-1063.0,0.00051,30]
[356567150,1742680284369,-1063.0,0.00051,30]
[356567151,1742680284379,-300.0,0.00051,30]
[356567152,1742680284388,-204.0,0.00051,2]
[356567153,1742680284398,-202.0,0.00051,2]
[356567154,1742680284407,-201.0,0.00051,2]
[356567155,1742680284416,-207.0,0.00051,2]
[356567156,1742680284426,-500.0,0.00051,120]
[356567157,1742680284435,-210.0,0.00051,2]
[356567158,1742680284444,-200.00000063,0.00051,120]
[356567159,1742680284453,-522.0,0.00051,51]
[356567160,1742680284462,-164.24267922,0.00051,30]
[356567161,1742680284471,-160.40269821,0.00051,30]
[356567162,1742680284480,-294.50494631,0.00051,30]
[356567163,1742680284489,-150.00000001,0.00051,30]
[356567164,1742680284498,-507.25445275,0.000512,30]
[356567165,1742680284507,-28873.53956739,0.000515,120]
[356567166,1742680284516,-500.0,0.0005151,120]
[356567167,1742680284525,-200.32,0.00051591,120]
[356567168,1742680284535,-19834.36,0.0005166,120]
[356567169,1742680284543,-1348788.81639073,0.0005169,120]
[356567170,1742680284669,-341.04,0.0005169,120]
[356567171,1742680285946,-1088.28493034,0.0005169,120]
[356567172,1742680285957,-397.66172814,0.0005169,120]
[356567173,1742680286079,-500.0,0.00043835,120]
[356567174,1742680286090,-6.7,0.00044109,120]
[356567175,1742680286113,-153.0,0.00042327,2]
[356567176,1742680286123,-467.53202636,0.00044109,120]
[356567179,1742680483928,-856.316,0.000119,2]
[356567180,1742680483953,-29143.684,0.000119,2]
[356567181,1742680490106,-182.333,0.000119,2]
[356567182,1742680513558,-526.65201662,0.000119,2]
[356567211,1742681432132,-5292.42640267,0.0001189,2]
[356567212,1742681432143,-150.0,0.00011892,2]
[356567213,1742681432152,-300.0,0.00011899,2]
[356567214,1742681432161,-64027.76168338,0.000119,2]
[356567215,1742681432171,-150.0,0.00012244,2]
[356567216,1742681432180,-420.0,0.00013064,2]
[356567217,1742681432190,-150.0,0.00013079,2]
[356567218,1742681432199,-177.18,0.00013699,2]
[356567219,1742681432209,-325.0,0.000137,2]
[356567220,1742681432219,-250.0,0.00014322,2]
[356567221,1742681432228,-587.0,0.00014343,2]
[356567222,1742681432238,-823.0,0.00015747,2]
[356567223,1742681432248,-1152.0,0.00017288,2]
[356567224,1742681432257,-900.0,0.0001898,2]
[356567225,1742681432266,-325.85167104,0.000192,2]
[356567226,1742681432276,-177.18,0.00020091,2]
[356567227,1742681432285,-679.681,0.00026027,12]
[356567228,1742681432295,-177.18,0.00026484,2]
[356567229,1742681432303,-150.0,0.00026553,2]
[356567230,1742681432313,-351.54,0.00026591,2]
[356567231,1742681432322,-499.99,0.00026591,2]
[356567232,1742681432332,-150.99,0.00026591,2]
[356567233,1742681432341,-1392.79,0.00026591,2]
[356567234,1742681432352,-294.43,0.00026591,2]
[356567235,1742681432362,-2365.83,0.00026591,20]
[356567236,1742681432372,-5218.79,0.00026591,2]
[356567237,1742681432381,-330.87,0.00026591,2]
[356567238,1742681432391,-207.07618976,0.00027,4]
[356567239,1742681432400,-207.07618963,0.00027,4]
[356567240,1742681432410,-207.07618963,0.00027,4]
[356567241,1742681432420,-232.53,0.00027923,2]
[356567242,1742681432429,-207.07618963,0.00028253,5]
[356567243,1742681432439,-206.103,0.00030464,2]
[356567244,1742681432448,-2036.0,0.00030464,2]
[356567245,1742681432457,-1281.0,0.00030464,2]
[356567246,1742681432467,-572.0,0.00030464,2]
[356567247,1742681432476,-1420.0,0.00030464,2]
[356567248,1742681432485,-779.0,0.00030464,2]
[356567249,1742681432494,-2881.185,0.00030464,2]
[356567250,1742681432504,-542.0,0.00030464,2]
[356567251,1742681432513,-1430.0,0.00030464,2]
[356567252,1742681432523,-151.0,0.00030464,2]
[356567253,1742681432532,-3939.0,0.00030464,2]
[356567254,1742681432542,-1014.0,0.00030464,2]
[356567255,1742681432552,-250.0,0.00031,2]
[356567256,1742681432562,-2000.0,0.000316,8]
[356567257,1742681432571,-2025.19135,0.0003161,8]
[356567258,1742681432580,-177.18,0.00032877,2]
[356567259,1742681432590,-300.0,0.00033,2]
[356567260,1742681432599,-207.07618963,0.00033371,6]
[356567261,1742681432608,-2036.0,0.00033464,2]
[356567262,1742681432617,-1281.0,0.00033464,2]
[356567263,1742681432627,-572.0,0.00033464,2]
[356567264,1742681432636,-1420.0,0.00033464,2]
[356567265,1742681432645,-535.767,0.00033464,2]
[356567266,1742681432654,-1413.0,0.00033464,2]
[356567267,1742681432663,-151.0,0.00033464,2]
[356567268,1742681432673,-3939.0,0.00033464,2]
[356567269,1742681432682,-1014.0,0.00033464,2]
[356567270,1742681432691,-350.0,0.00035,2]
[356567271,1742681432701,-2033.0,0.00036464,2]
[356567272,1742681432710,-1278.0,0.00036464,2]
[356567273,1742681432719,-572.0,0.00036464,2]
[356567274,1742681432729,-1420.0,0.00036464,2]
[356567275,1742681432738,-151.0,0.00036464,2]
[356567276,1742681432748,-3936.0,0.00036464,2]
[356567277,1742681432757,-1014.0,0.00036464,2]
[356567278,1742681432767,-400.0,0.00037,2]
[356567279,1742681432777,-491.0,0.00037123,2]
[356567280,1742681432786,-207.07618963,0.00038488,8]
[356567281,1742681432795,-23900.0,0.00038673,2]
[356567282,1742681432804,-450.0,0.00039,2]
[356567283,1742681432814,-1063.0,0.00039997,5]
[356567284,1742681432823,-4222.34899263,0.0004,120]
[356567285,1742681432833,-1262.69,0.00040158,2]
[356567286,1742681432842,-268.09,0.00040594,2]
[356567287,1742681432852,-1000.0,0.00040623,2]
[356567288,1742681432862,-166.34,0.00040684,2]
[356567289,1742681432872,-45624.22,0.00040852,2]
[356567290,1742681432882,-150.0,0.00040962,2]
[356567291,1742681432892,-500.0,0.00041,2]
[356567292,1742681432902,-174.0,0.00041,14]
[356567293,1742681432912,-150.0,0.00041073,7]
[356567294,1742681432922,-150.11,0.00041096,2]
[356567295,1742681432931,-179.23,0.00041118,2]
[356567296,1742681432941,-461.96,0.0004136,2]
[356567297,1742681432951,-200.32,0.00041411,120]
[356567298,1742681432961,-500.0,0.00041498,2]
[356567299,1742681432970,-1063.0,0.00042102,30]
[356567300,1742681432979,-181.31,0.00042191,2]
[356567301,1742681432988,-1262.69,0.00042422,2]
[356567302,1742681432998,-200.0,0.00042436,2]
[356567303,1742681433007,-550.0,0.00043,2]
[356567304,1742681433017,-895.26,0.00043209,2]
[356567305,1742681433026,-207.07618963,0.00043606,9]
[356567306,1742681433036,-267.15,0.00043835,120]
[356567307,1742681433044,-900.0,0.00043888,48]
[356567308,1742681433054,-500.0,0.00043967,10]
[356567309,1742681433063,-500.0,0.00044214,2]
[356567310,1742681433073,-173.48,0.00044236,2]
[356567311,1742681433083,-250.0,0.00044279,2]
[356567312,1742681433093,-1063.0,0.00044318,30]
[356567313,1742681433106,-518.157282,0.000444,59]
[356567314,1742681433116,-1000.0,0.00044417,120]
[356567315,1742681433126,-900.0,0.00044479,16]
[356567316,1742681433135,-900.0,0.00044479,16]
[356567317,1742681433145,-900.0,0.00044479,16]
[356567318,1742681433155,-900.0,0.00044479,16]
[356567319,1742681433164,-900.0,0.00044479,16]
[356567320,1742681433174,-900.0,0.00044479,16]
[356567321,1742681433183,-900.0,0.00044479,16]
[356567322,1742681433193,-900.0,0.00044479,16]
[356567323,1742681433203,-900.0,0.00044479,16]
[356567324,1742681433212,-900.0,0.00044479,16]
[356567325,1742681433221,-518.157282,0.000445,59]
[356567326,1742681433230,-1262.69,0.00044686,2]
[356567327,1742681433240,-174.35,0.00044716,91]
[356567328,1742681433249,-600.0,0.00045,2]
[356567329,1742681433259,-895.26,0.0004537,2]
[356567330,1742681433268,-162.61,0.00045591,2]
[356567331,1742681433277,-1000.0,0.000457,2]
[356567332,1742681433288,-159.862841,0.00046575,120]
[356567333,1742681433297,-155.8,0.000466,2]
[356567334,1742681433307,-1063.0,0.0004665,30]
[356567335,1742681433316,-300.0,0.00046916,120]
[356567336,1742681433326,-1262.69,0.0004695,2]
[356567337,1742681433335,-650.0,0.00047,2]
[356567338,1742681433345,-679.682,0.0004702,79]
[356567339,1742681433354,-5800.0,0.00047115,14]
[356567340,1742681433364,-5800.0,0.00047123,14]
[356567341,1742681433373,-895.26,0.0004753,2]
[356567342,1742681433382,-162.61,0.00048099,2]
[356567343,1742681433392,-300.0,0.00048286,120]
[356567344,1742681433401,-207.07618963,0.00048724,11]
[356567345,1742681433411,-467.41,0.000489,7]
[356567346,1742681433420,-700.0,0.00049,2]
[356567347,1742681433429,-1063.0,0.00049106,30]
[356567348,1742681433439,-1262.69,0.00049214,2]
[356567349,1742681433448,-900.0,0.00049315,36]
[356567350,1742681433457,-786.0564981,0.00049446,10]
[356567351,1742681433467,-1907.89608817,0.00049466,2]
[356567352,1742681433476,-204.0242783,0.0004947,4]
[356567353,1742681433486,-895.26,0.00049691,2]
[356567354,1742681433495,-1587.1465,0.000503,2]
[356567355,1742681433505,-16331.22,0.000504,30]
[356567356,1742681433514,-162.61,0.00050608,2]
[356567357,1742681433524,-1000.0,0.00050778,120]
[356567358,1742681433534,-750.0,0.00051,2]
[356567359,1742681433544,-150.0,0.000512,30]
[356567360,1742681433554,-150.0,0.000512,30]
[356567361,1742681433563,-150.0,0.000512,30]
[356567362,1742681433573,-150.0,0.000512,30]
[356567363,1742681433582,-150.0,0.000512,30]
[356567364,1742681433591,-150.0,0.000512,30]
[356567365,1742681433600,-150.0,0.000512,30]
[356567366,1742681433610,-150.0,0.000512,30]
[356567367,1742681433620,-150.0,0.000512,30]
[356567368,1742681433629,-280.02828469,0.000512,30]
[356567369,1742681433638,-150.0,0.000512,30]
[356567370,1742681433648,-150.0,0.000512,30]
[356567371,1742681433657,-150.0,0.000512,30]
[356567372,1742681433667,-150.00000001,0.000512,30]
[356567373,1742681433676,-286.858691,0.000512,30]
[356567374,1742681433686,-150.0,0.000512,30]
[356567375,1742681433695,-1262.69,0.00051477,2]
[356567376,1742681433704,-585.10449018,0.0005157,23]
[356567377,1742681433714,-13519.8606757,0.0005157,4]
[356567378,1742681433723,-500.0,0.00051578,120]
[356567379,1742681433732,-1312.54,0.00051578,120]
[356567380,1742681433742,-4363.31920514,0.00051579,120]
[356567382,1742681437915,-796.48110676,0.00051579,120]
[356567383,1742681437925,-5092.68889324,0.00051579,120]
[356567385,1742681440343,-150.0,0.000461,2]